bitfinex/quotes_ETHUSD_20250326
["timestamp","ask_amount","ask_price","bid_price","bid_amount"]
[1743002213108,5.102,2017.1,2016.8,4.95825]
[1743002213313,8.101,2017.0,2016.9,4.95785]
[1743002213504,8.101,2017.0,2016.7,4.95854]
[1743002213710,8.101,2017.0,2016.8,4.95831]
[1743002214222,8.101,2017.0,2016.8,9.91647]
[1743002214389,8.101,2017.0,2016.9,4.9581]
[1743002214591,8.101,2017.0,2016.7,4.95838]
[1743002214816,8.101,2017.0,2016.8,4.95825]
[1743002215190,8.101,2017.0,2016.7,4.95838]
[1743002215724,8.101,2017.0,2016.8,4.9583]
[1743002215923,8.101,2017.0,2016.7,4.95844]
[1743002216122,3.0,2016.9,2016.4,5.75419]
[1743002216427,3.0,2016.9,2016.4,4.95909]
[1743002216717,3.0,2016.9,2016.5,4.95894]
[1743002216921,3.0,2016.9,2016.1,0.7872]
[1743002217086,3.0,2016.9,2016.2,4.95961]
[1743002217291,3.0,2016.9,2016.1,4.97992]
[1743002217292,0.8082,2016.8,2016.1,4.97992]
[1743002217490,3.0,2016.6,2016.1,0.02]
[1743002217718,3.0,2016.4,2016.1,0.02]
[1743002218199,0.7622,2016.3,2016.1,0.02]
[1743002219099,3.0,2016.2,2016.1,0.02]
[1743002220418,3.0,2016.3,2016.1,0.02]
[1743002220597,5.101,2016.7,2016.4,4.95919]
[1743002220801,0.8251,2017.0,2016.4,4.95918]
[1743002221132,3.0,2016.5,2016.2,9.91932]
[1743002221299,3.0,2016.5,2016.3,9.91897]
[1743002221500,3.0,2016.5,2016.3,10.96379057]
[1743002221691,3.0,2016.5,2016.3,6.00432057]
[1743002221904,3.0,2016.5,2016.1,5.48977572]
[1743002222116,3.8251,2017.0,2016.2,4.9596]
[1743002222439,3.0,2016.8,2016.3,4.95938]
[1743002222735,3.0,2016.8,2016.4,4.95929]
[1743002223037,3.0,2016.8,2016.3,4.95938]
[1743002223210,3.0,2016.8,2016.3,5.50831157]
[1743002223709,0.8251,2017.0,2016.4,4.95922]
[1743002223913,5.101,2016.7,2016.4,4.95922]
[1743002224126,3.0,2016.6,2016.4,4.95922]
[1743002226142,3.0,2016.6,2016.3,5.50831157]
[1743002226807,8.101,2016.5,2016.4,4.95913]
[1743002227229,28.624,2017.1,2016.8,4.95819]
[1743002227535,28.624,2017.1,2017.0,4.95785]
[1743002227945,31.624,2017.1,2017.0,4.95785]
[1743002228302,28.624,2017.1,2017.0,4.95785]
[1743002228507,28.624,2017.1,2017.0,6.526242]
[1743002229140,0.8031,2017.7,2017.0,6.526242]
[1743002229305,5.101,2017.6,2017.4,4.95672]
[1743002229506,3.0,2017.5,2017.4,4.95672]
[1743002229808,5.101,2017.6,2017.3,4.95702]
[1743002230036,5.101,2017.6,2017.1,5.75437]
[1743002230239,0.8031,2017.4,2016.7,4.95836]
[1743002230440,0.8031,2017.4,2016.9,4.95807]
[1743002230948,0.8031,2017.4,2016.8,9.9164]
[1743002231246,0.8031,2017.4,2016.8,4.95816]
[1743002231411,0.8031,2017.4,2016.8,9.9163]
[1743002231751,0.8031,2017.4,2016.6,0.8182]
[1743002232039,0.7604,2017.0,2016.4,5.78382]
[1743002232340,3.0,2016.8,2016.6,4.95871]
[1743002232540,3.0,2016.8,2016.5,9.91795]
[1743002232756,3.0,2016.8,2016.5,4.95897]
[1743002234159,3.0,2016.8,2016.6,4.95882]
[1743002234665,8.099,2016.7,2016.6,4.95866]
[1743002234865,3.0,2016.6,2016.4,4.9593]
[1743002235056,5.099,2016.7,2016.4,4.95924]
[1743002235367,5.099,2016.7,2016.3,0.54893157]
[1743002235563,5.099,2016.7,2016.5,4.95887]
[1743002235731,5.099,2016.7,2016.5,4.95902]
[1743002235932,5.099,2016.7,2016.3,5.50840157]
[1743002236132,5.099,2016.7,2016.3,4.95938]
[1743002236344,5.099,2016.7,2016.4,4.95924]
[1743002236756,0.7873,2016.6,2016.3,4.95952]
[1743002236952,0.55,2016.5,2016.1,0.02]
[1743002237153,0.7873,2016.4,2016.1,0.02]
[1743002237364,3.0,2016.2,2016.1,0.02]
[1743002237551,38.0573,2016.2,2016.1,0.02]
[1743002238561,37.4775,2016.2,2016.1,0.02]
[1743002238737,40.0706,2016.2,2016.1,0.02]
[1743002239137,40.0716,2016.2,2016.1,0.02]
[1743002239650,40.0716,2016.2,2015.2,4.96226]
[1743002239651,7.3114,2016.0,2015.2,4.96207]
[1743002239965,4.3114,2016.0,2015.0,4.96275]
[1743002240159,14.835631,2016.0,2015.0,4.96275]
[1743002240369,19.082129,2016.0,2015.2,4.96226]
[1743002240536,12.504257,2016.0,2015.2,4.96226]
[1743002240735,11.925928,2016.0,2015.2,4.96226]
[1743002241270,13.39448978,2016.0,2015.3,4.96189]
[1743002241492,13.39448978,2016.0,2015.2,4.96213]
[1743002241842,15.78123378,2016.0,2015.1,4.96251]
[1743002242044,15.78123378,2016.0,2015.2,4.96215]
[1743002242633,15.78123378,2016.0,2015.1,4.96245]
[1743002242968,8.29448978,2016.0,2015.3,4.96203]
[1743002243372,13.39448978,2016.0,2015.4,4.96177]
[1743002243570,13.39448978,2016.0,2015.2,0.8309]
[1743002243740,6.84448978,2016.0,2015.2,5.79295]
[1743002243939,6.84448978,2016.0,2015.6,4.96117]
[1743002244146,6.84448978,2016.0,2015.3,4.96199]
[1743002244147,6.08308978,2016.0,2015.3,4.96199]
[1743002244347,3.98308978,2016.0,2015.6,4.96116]
[1743002244548,9.08308978,2016.0,2015.5,4.96153]
[1743002244738,3.98308978,2016.0,2015.5,4.96153]
[1743002244937,9.08408978,2016.0,2015.5,4.96153]
[1743002245266,9.08408978,2016.0,2015.6,4.9612]
[1743002245977,9.08408978,2016.0,2015.6,4.96112]
[1743002246175,3.98308978,2016.0,2015.7,0.7922]
[1743002246351,0.37287254,2016.2,2016.0,9.92042]
[1743002246678,5.101,2016.3,2016.1,1.00396072]
[1743002247063,3.0,2016.2,2016.1,1.00396072]
[1743002247374,3.7695,2016.2,2015.7,14.49920001]
[1743002247546,0.55,2016.1,2015.4,4.96178]
[1743002247740,3.7695,2016.2,2015.6,4.9612]
[1743002247941,3.7695,2016.2,2015.5,4.96152]
[1743002248148,3.7695,2016.2,2015.5,5.457672]
[1743002248881,0.97457921,2015.8,2015.6,4.96109]
[1743002249063,8.101,2015.7,2015.6,4.96109]
[1743002249376,3.0,2015.7,2015.6,5.71299]
[1743002249678,5.101,2016.2,2016.1,4.96005]
[1743002250044,8.101,2016.2,2016.1,4.96005]
[1743002250651,5.101,2016.2,2016.1,4.96005]
[1743002250840,28.634,2016.4,2016.1,4.96005]
[1743002251046,5.101,2016.3,2016.0,0.7519]
[1743002251246,5.101,2016.3,2016.1,5.531104]
[1743002251536,8.101,2016.3,2015.9,4.96052]
[1743002251658,3.0,2016.2,2015.8,5.73238]
[1743002252177,3.0,2016.2,2016.0,4.9602]
[1743002252378,3.0,2016.2,2016.0,9.9204]
[1743002252584,3.0,2016.3,2016.1,4.96007]
[1743002252883,5.101,2016.2,2016.1,5.456077]
[1743002316495,9.48284697,2018.5,2018.1,9.91015]
[1743002317192,9.48284697,2018.5,2018.1,4.95501]
[1743002317572,9.48284697,2018.5,2018.1,4.95499]
[1743002318184,9.48284697,2018.5,2018.2,4.95482]
[1743002318386,4.39384697,2018.5,2018.2,5.76328]
[1743002318693,9.48184697,2018.5,2018.2,5.76328]
[1743002319194,9.48184697,2018.5,2018.1,4.95514]
[1743002319691,0.7914,2018.4,2017.9,5.59]
[1743002320269,0.7914,2018.4,2017.6,4.95637]
[1743002320476,0.7914,2018.4,2017.5,4.95659]
[1743002320787,0.7914,2018.4,2017.6,4.9563]
[1743002321294,0.7914,2018.4,2017.5,19.45657]
[1743002321499,0.7613,2018.2,2017.5,4.95657]
[1743002321993,0.981059,2018.0,2017.6,4.95636]
[1743002322161,3.0,2017.8,2017.6,9.9126]
[1743002322366,3.0,2017.8,2017.7,4.95613]
[1743002322789,3.0,2017.8,2017.5,19.45662]
[1743002322991,3.0,2017.8,2017.5,4.95662]
[1743002323502,3.0,2017.8,2017.5,4.95646]
[1743002323702,3.0,2017.8,2017.6,4.9563]
[1743002323998,3.0,2017.8,2017.7,4.95613]
[1743002324187,1.01104683,2018.1,2017.5,2.82479348]
[1743002324188,1.01104683,2018.1,2017.8,4.95589]
[1743002324391,3.0,2018.0,2017.8,5.71265]
[1743002324592,3.0,2018.0,2017.9,4.95559]
[1743002324770,3.0,2018.0,2017.8,5.71265]
[1743002325201,3.0,2018.0,2017.8,4.95575]
[1743002326088,1.00359952,2018.2,2017.7,4.95612]
[1743002326281,3.0,2018.0,2017.6,5.71321]
[1743002326477,3.0,2018.0,2017.6,4.95631]
[1743002326703,3.0,2018.0,2017.6,9.91259]
[1743002327000,3.0,2018.0,2017.7,4.95613]
[1743002327172,3.0,2018.0,2017.6,4.95628]
[1743002327771,3.98809995,2018.0,2017.4,8.302667]
[1743002328298,3.98809995,2018.0,2017.4,3.345887]
[1743002328497,3.0,2018.0,2017.6,4.95628]
[1743002328671,0.7894,2018.1,2017.7,9.91198]
[1743002328873,8.088,2018.0,2017.8,5.00531445]
[1743002329074,3.0,2017.9,2017.8,4.95576]
[1743002329476,3.0,2017.9,2017.7,4.95598]
[1743002329800,3.0,2017.9,2017.6,4.95628]
[1743002330103,3.0,2017.9,2017.5,4.95658]
[1743002330302,3.0,2017.9,2017.5,4.95647]
[1743002330476,3.0,2017.9,2017.6,4.95626]
[1743002330802,3.37450648,2017.9,2017.6,4.95626]
[1743002331208,3.37450648,2017.9,2017.5,7.7957057]
[1743002331916,3.37450648,2017.9,2017.4,3.345887]
[1743002332116,0.8241,2017.8,2017.3,5.59]
[1743002332873,3.0,2017.6,2017.3,10.54711]
[1743002333079,3.0,2017.6,2017.3,5.59]
[1743002334212,0.37450648,2017.9,2017.5,5.71892]
[1743002334420,3.0,2017.9,2017.5,5.71892]
[1743002334606,3.0,2017.9,2017.6,4.95632]
[1743002334801,3.0,2017.9,2017.7,4.95612]
[1743002335125,3.36795488,2017.9,2017.7,9.91211]
[1743002335322,3.0,2018.0,2017.7,4.95599]
[1743002335530,3.0,2018.0,2017.8,4.95577]
[1743002335891,3.0,2018.0,2017.7,4.95607]
[1743002336107,3.0,2018.0,2017.6,4.95635]
[1743002336496,3.0,2018.0,2017.6,10.54635]
[1743002336715,3.0,2018.0,2017.6,5.59]
[1743002337753,0.98161031,2018.1,2017.7,4.95595]
[1743002337936,3.0,2018.0,2017.9,4.95552]
[1743002338251,3.0,2018.0,2017.8,4.95579]
[1743002338433,3.0,2018.1,2017.8,4.95579]
[1743002338905,3.0,2018.1,2017.7,4.95608]
[1743002339113,3.0,2018.1,2017.7,6.65738492]
[1743002339321,3.7678,2018.1,2017.6,11.2945492]
[1743002339645,3.0,2018.1,2017.7,4.95589]
[1743002340015,3.0,2018.1,2017.8,4.95578]
[1743002340324,3.0,2018.1,2017.7,4.95589]
[1743002340517,3.0,2018.1,2017.6,6.3383192]
[1743002340717,3.99155169,2018.1,2017.6,5.59]
[1743002341235,0.7712,2018.0,2017.6,5.59]
[1743002342350,0.7712,2018.0,2017.3,5.59]
[1743002342853,0.7712,2018.0,2017.3,10.54711]
[1743002343042,0.7712,2018.0,2017.3,15.50411]
[1743002343239,2.42303554,2018.0,2017.4,4.95684]
[1743002343442,0.9813989,2017.9,2017.4,4.95684]
[1743002344526,0.7712,2018.0,2017.6,4.95636]
[1743002344728,33.692,2018.2,2017.5,0.8307]
[1743002344729,34.5243,2018.2,2017.7,4.95602]
[1743002344941,34.5243,2018.2,2017.8,4.9558]
[1743002345162,3.0,2018.1,2017.7,0.578672]
[1743002345473,3.0,2018.1,2017.6,4.95638]
[1743002346175,0.7634,2018.0,2017.4,4.95684]
[1743002346473,0.7634,2018.0,2017.4,4.95673]
[1743002347083,0.7634,2018.0,2017.3,10.54704]
[1743002347250,1.00136056,2017.7,2017.3,10.54704]
[1743002347448,3.0,2017.5,2017.3,12.176478]
[1743002347652,3.0,2017.5,2017.3,12.176448]
[1743002348049,3.0,2017.5,2017.3,12.176388]
[1743002348275,3.0,2017.5,2017.4,4.95687]
[1743002349959,3.0,2017.5,2017.3,12.176388]
[1743002350769,3.0,2017.5,2017.3,5.59]
[1743002350975,3.0,2017.5,2017.3,10.54707]
[1743002351134,3.0,2017.5,2017.3,10.54697]
[1743002351467,3.0,2017.5,2017.4,4.95687]
[1743002351868,0.8176,2017.9,2017.5,0.7518]
[1743002352166,3.0,2017.8,2017.6,4.9563]
[1743002352371,3.0,2017.8,2017.6,6.022732]
[1743002352671,0.7916,2018.1,2017.8,4.95577]
[1743002352889,5.086,2018.2,2017.8,4.95577]
[1743002353270,5.086,2018.2,2017.9,4.95564]
[1743002353658,3.0,2018.1,2017.9,4.95564]
[1743002353864,5.086,2018.2,2017.9,4.95564]
[1743002354158,3.0,2018.1,2017.9,4.95564]
[1743002354377,3.37107211,2018.1,2017.8,4.95577]
[1743002354965,3.37107211,2018.1,2017.8,4.95575]
[1743002355365,3.37107211,2018.1,2017.8,1.550187]
[1743002355573,0.8009,2018.0,2017.6,5.59]
[1743002355956,0.8009,2018.0,2017.6,10.54624]
[1743002356157,0.8009,2018.0,2017.7,4.95592]
[1743002356362,0.8009,2018.0,2017.7,9.91194]
[1743002356676,3.37107211,2018.1,2017.9,4.95552]
[1743002357052,3.37107211,2018.1,2017.9,4.9556]
[1743002357681,3.37107211,2018.1,2017.8,6.506064]
[1743002357854,3.37107211,2018.1,2017.8,11.461934]
[1743002359099,3.37107211,2018.1,2017.9,4.95555]
[1743002359297,3.7728,2018.4,2017.9,6.1821414]
[1743002359596,3.0,2018.1,2018.0,4.95539]
[1743002359799,3.0,2018.1,2017.9,16.7276614]
[1743002359964,3.0,2018.1,2017.9,11.7721414]
[1743002360297,3.0,2018.1,2017.9,16.7276314]
[1743002360590,3.0,2018.1,2017.9,11.7721414]
[1743002360882,0.8043,2018.0,2017.9,5.59]
[1743002362985,0.8043,2018.0,2017.6,15.50258]
[1743002363181,0.8043,2018.0,2017.6,10.54623]
[1743002364291,0.8043,2018.0,2017.6,5.59]
[1743002366066,0.7882,2018.3,2017.7,0.7827]
[1743002366271,5.8712,2018.3,2017.9,4.95551]
[1743002366591,5.8712,2018.3,2017.9,4.95555]
[1743002367180,5.8712,2018.3,2017.8,4.95575]
[1743002367382,5.8712,2018.3,2017.9,9.91117]
[1743002367576,5.8712,2018.3,2018.0,4.95533]
[1743002368255,5.8712,2018.3,2017.9,6.088634]
[1743002368455,5.8712,2018.3,2018.0,4.95539]
[1743002369397,5.8712,2018.3,2018.1,4.95506]
[1743002369694,34.88574199,2018.5,2018.1,4.95515]
[1743002369873,34.88574199,2018.5,2018.2,3.000051]
[1743002370194,3.0,2018.4,2018.2,7.954941]
[1743002370583,3.0,2018.4,2018.2,3.000051]
[1743002370789,3.0,2018.4,2018.0,5.59]
[1743002371091,0.8214,2018.3,2018.0,5.59]
[1743002371764,0.8214,2018.3,2018.0,10.54535]
[1743002371964,3.0,2018.4,2018.1,4.95502]
[1743002372292,3.0,2018.4,2018.2,4.9549]
[1743002372593,2.16860638,2018.5,2018.2,4.9549]
[1743002372893,3.0,2018.4,2018.2,1.549992]
[1743002373099,2.871004,2018.4,2018.2,1.549992]
[1743002373287,2.871004,2018.4,2018.2,6.504872]
[1743002374189,2.871004,2018.4,2018.2,11.459642]
[1743002374397,2.871004,2018.4,2018.3,1.1459642]
[1743002374695,1.35870638,2018.5,2018.3,6.1004942]
[1743002374883,0.99506439,2018.5,2018.3,6.1004942]
[1743002375083,3.0,2018.5,2018.3,6.1004942]
[1743002375694,3.0,2018.5,2018.3,6.1004542]
[1743002375893,33.685,2018.8,2018.5,10.72114]
[1743002376198,33.685,2018.8,2018.6,4.95392]
[1743002376360,3.0,2018.7,2018.6,4.95392]
[1743002376561,3.0,2018.7,2018.5,4.95408]
[1743002377317,3.0,2018.7,2018.6,4.95392]
[1743002377513,3.0,2018.7,2018.6,6.02121746]
[1743002377690,3.0,2018.7,2018.6,1.06729746]
[1743002378303,3.0,2018.7,2018.6,6.02121746]
[1743002379015,3.0,2018.7,2018.6,1.06729746]
[1743002379213,3.0,2018.7,2018.6,6.02121746]
[1743002380420,3.0,2018.7,2018.6,11.61121746]
[1743002380798,3.38775437,2018.9,2018.6,11.61121746]
[1743002381112,3.38775437,2018.9,2018.7,1.16112175]
[1743002381318,3.38775437,2018.9,2018.7,6.11471175]
[1743002381488,0.38775437,2018.9,2018.7,6.11471175]
[1743002381685,3.38775437,2018.9,2018.7,6.11471175]
[1743002382112,3.02,2018.9,2018.8,1.77259292]
[1743002382591,0.02,2018.9,2018.8,6.72602292]
[1743002383099,0.02,2018.9,2018.8,6.77554951]
[1743002383322,0.02,2018.9,2018.8,6.72602292]
[1743002383817,0.02,2018.9,2018.8,6.77554956]
[1743002384014,0.02,2018.9,2018.8,6.77554957]
[1743002384216,0.02,2018.9,2018.8,6.72602292]
[1743002384919,0.02,2018.9,2018.8,1.77259292]
[1743002385789,0.02,2018.9,2018.8,6.72602292]
[1743002386321,0.02,2018.9,2018.8,12.31602292]
[1743002389004,0.36828495,2019.3,2019.2,5.70965]
[1743002389209,0.36828495,2019.3,2019.2,11.84965]
[1743002389410,4.02210539,2019.9,2019.2,25.79965]
[1743002389608,4.02210539,2019.9,2019.2,25.79949]
[1743002389811,4.02210539,2019.9,2019.3,9.9042]
[1743002390111,0.802,2019.8,2019.4,3.07514]
[1743002391848,1.18305246,2019.8,2019.4,3.07514]
[1743002396769,0.7722,2019.7,2019.3,5.59]
[1743002399633,0.99111214,2019.5,2019.3,5.59]
[1743002399838,8.8843,2019.4,2018.9,6.20326629]
[1743002400035,8.8843,2019.4,2019.0,4.9528]
[1743002400378,8.8843,2019.4,2018.9,31.24631629]
[1743002400550,8.8843,2019.4,2019.0,3.37986092]
[1743002400755,8.8843,2019.4,2019.0,8.33280092]
[1743002400951,8.8843,2019.4,2019.0,3.37986092]
[1743002402129,0.7776,2019.2,2018.9,5.608634]
[1743002402513,1.14156275,2019.2,2018.9,5.608634]
[1743002402822,0.36396275,2019.2,2018.9,10.561634]
[1743002403025,3.0,2019.3,2019.0,4.95288]
[1743002403230,3.0,2019.3,2019.0,4.95285]
[1743002403388,3.0,2019.3,2019.0,6.5852834]
[1743002403590,3.0,2019.3,2019.0,11.5380934]
[1743002403790,3.0,2019.3,2019.1,4.95268]
[1743002404424,3.0,2019.3,2019.1,9.90526]
[1743002404626,5.076,2019.4,2019.1,4.95258]
[1743002404827,3.0,2019.3,2019.2,0.65850134]
[1743002405030,3.38145559,2019.3,2019.2,0.65850134]
[1743002405528,3.38145559,2019.3,2019.1,4.95255]
[1743002405736,3.0,2019.3,2019.2,4.95245]
[1743002405937,5.075,2019.6,2019.3,5.7829]
[1743002406611,3.0,2019.5,2019.3,5.7829]
[1743002406917,3.0,2019.5,2019.4,0.57829]
[1743002407093,3.0,2019.5,2019.2,4.95231]
[1743002407295,3.3630695,2019.5,2019.2,4.95231]
[1743002407801,0.7905,2019.4,2019.1,5.59]
[1743002408016,0.7905,2019.4,2018.9,5.608634]
[1743002408197,0.7905,2019.4,2018.9,0.018634]
[1743002408537,0.7905,2019.2,2018.9,0.018634]
[1743002408826,3.0,2019.0,2018.9,0.018634]
[1743002409718,3.8027,2019.0,2018.9,0.018634]
[1743002410098,4.80050172,2019.0,2018.9,0.018634]
[1743002411101,0.8027,2019.0,2018.9,0.018634]
[1743002411296,5.075,2019.0,2018.9,0.018634]
[1743002415200,1.82649719,2019.2,2018.9,0.018634]
[1743002415400,0.99839719,2019.2,2018.9,0.797634]
[1743002415732,3.0,2019.0,2018.9,0.797634]
[1743002415918,5.074,2019.1,2018.9,6.8212484]
[1743002416110,5.074,2019.1,2019.0,4.95294]
[1743002416310,3.0,2019.1,2019.0,4.95294]
[1743002416701,3.0,2019.0,2018.9,6.8212484]
[1743002416923,3.0,2019.3,2018.9,6.8212484]
[1743002417120,3.0,2019.3,2019.0,0.68212484]
[1743002418633,0.8025,2019.2,2018.9,1.0890584]
[1743002418809,0.8025,2019.2,2018.9,0.018634]
[1743002424336,0.7689,2019.0,2018.1,0.8239]
[1743002424513,3.7689,2018.8,2018.1,0.8239]
[1743002425446,0.7689,2018.5,2018.0,5.59]
[1743002425647,3.0,2018.3,2017.7,0.8239]
[1743002425947,3.88419,2018.3,2017.7,0.8239]
[1743002426113,0.7689,2018.2,2017.7,0.8239]
[1743002426656,0.7689,2018.2,2017.6,5.59]
[1743002426861,0.7689,2018.2,2017.7,4.95612]
[1743002427022,0.7689,2018.2,2017.6,10.54618]
[1743002427222,0.7689,2018.2,2017.7,1.137008]
[1743002427538,0.7689,2018.2,2017.7,11.048948]
[1743002427739,4.35390605,2018.3,2017.9,5.78316]
[1743002428131,4.35390605,2018.3,2017.9,5.7833]
[1743002428328,4.35390605,2018.3,2017.9,6.9709188]
[1743002428553,0.36778502,2018.3,2017.9,2.0153188]
[1743002428725,5.073,2018.7,2018.4,4.95429]
[1743002428932,5.073,2018.7,2018.3,5.74876]
[1743002429136,8.073,2018.7,2018.4,4.95438]
[1743002429463,5.073,2018.7,2018.5,19.45408]
[1743002429668,8.073,2018.7,2018.5,19.45408]
[1743002430020,5.073,2018.7,2018.5,19.45408]
[1743002430223,3.0,2018.6,2018.5,14.5]
[1743002430466,3.0,2018.6,2018.4,5.529208]
[1743002430657,3.0,2018.6,2018.5,1.1278058]
[1743002430817,5.43989152,2018.7,2018.5,1.1278058]
[1743002431017,8.43989152,2018.7,2018.5,6.0818158]
[1743002431218,0.36689152,2018.7,2018.5,6.13132139]
[1743002431418,3.0,2018.7,2018.5,6.0817858]
[1743002431650,3.0,2018.7,2018.6,2.55361958]
[1743002432032,3.0,2018.7,2018.6,7.50753958]
[1743002432461,3.0,2018.7,2018.6,2.55361958]
[1743002432755,3.0,2018.7,2018.6,7.50753958]
[1743002432925,3.36892752,2018.9,2018.7,5.77272]
[1743002433125,3.0,2018.9,2018.7,5.77272]
[1743002433325,3.0,2018.9,2018.7,7.21345954]
[1743002433530,3.0,2018.9,2018.8,4.95343]
[1743002434133,5.45123541,2019.0,2018.7,12.16715954]
[1743002434436,3.0,2019.4,2018.9,4.95319]
[1743002434759,5.073,2019.3,2018.9,5.74384]
[1743002435055,5.073,2019.3,2018.9,6.95764895]
[1743002435254,3.0,2019.2,2018.9,6.95764895]
[1743002435461,3.0,2019.2,2018.9,2.00450895]
[1743002435833,3.0,2019.2,2018.9,5.74383]
[1743002436035,5.073,2019.3,2018.9,5.74383]
[1743002436539,3.0,2019.2,2018.9,5.74383]
[1743002436858,3.0,2019.2,2018.9,0.7907]
[1743002437741,3.0,2019.2,2018.7,5.73523]
[1743002437943,0.7954,2019.1,2018.6,4.95386]
[1743002438162,0.7954,2019.1,2018.5,0.7521]
[1743002438537,0.7954,2019.1,2018.5,5.70614]
[1743002439372,3.0,2018.9,2018.6,4.95383]
[1743002439669,3.0,2018.9,2018.5,5.70614]
[1743002440249,3.0,2018.9,2018.5,6.25636073]
[1743002440661,3.0,2018.9,2018.6,4.95375]
[1743002440861,3.0,2018.9,2018.5,6.25647073]
[1743002441080,3.0,2018.9,2018.6,4.95384]
[1743002442582,1.20127598,2019.3,2019.0,4.95292]
[1743002442781,5.44707598,2019.3,2019.0,4.95275]
[1743002442969,5.071,2019.3,2019.0,4.95275]
[1743002443372,3.0,2019.2,2019.0,4.95275]
[1743002443562,5.071,2019.3,2019.1,4.95268]
[1743002443763,5.071,2019.3,2018.9,5.71436]
[1743002443764,3.0,2019.2,2019.0,4.95286]
[1743002444097,5.43393503,2019.3,2019.0,6.019582]
[1743002444274,3.0,2019.2,2019.0,6.019522]
[1743002445376,3.0,2019.2,2019.0,4.9528]
[1743002445802,3.0,2019.2,2019.1,4.9527]
[1743002445961,0.36293503,2019.3,2019.1,9.90525]
[1743002446167,8.07,2019.4,2019.1,9.90525]
[1743002446392,8.07,2019.4,2019.1,4.95255]
[1743002446592,8.07,2019.4,2019.0,4.95292]
[1743002447303,12.2934458,2019.4,2018.9,0.7612]
[1743002447606,0.7744,2019.3,2018.7,4.95356]
[1743002449013,0.7744,2019.3,2018.6,5.72629]
[1743002449299,0.99534486,2019.2,2018.5,4.9541]
[1743002449597,0.99534486,2019.2,2018.4,0.7613]
[1743002449598,0.99534486,2019.2,2018.6,4.95377]
[1743002449798,2.40166393,2019.2,2018.6,9.90756]
[1743002449995,2.40166393,2019.2,2018.6,9.90757]
[1743002450189,2.40166393,2019.2,2018.6,4.95377]
[1743002450496,2.40166393,2019.2,2018.5,4.95413]
[1743002450678,0.8064,2019.1,2018.4,5.71559]
[1743002450878,0.8064,2019.1,2018.5,5.525619]
[1743002451196,0.8064,2019.1,2018.5,19.45406]
[1743002451386,0.8064,2019.1,2018.5,14.5]
[1743002451826,0.8064,2019.1,2018.5,19.45416]
[1743002451995,0.8064,2019.1,2018.5,14.5]
[1743002452799,0.8064,2019.1,2018.4,10.66982]
[1743002453004,0.32080639,2019.0,2018.4,5.71555]
[1743002453174,3.0,2018.8,2018.4,20.21555]
[1743002453868,4.17945299,2018.8,2018.3,4.95464]
[1743002454067,4.17945299,2018.8,2018.3,9.90914]
[1743002454384,4.17945299,2018.8,2018.4,4.95432]
[1743002454805,4.17945299,2018.8,2018.4,5.00385873]
[1743002455412,5.1351146,2018.8,2018.3,4.9546]
[1743002455582,5.1351146,2018.8,2018.4,4.9544]
[1743002455788,5.1351146,2018.8,2018.4,5.00393875]
[1743002456098,5.1351146,2018.8,2018.4,0.04953875]
[1743002456303,3.0,2018.7,2018.5,4.95405]
[1743002456823,3.0,2018.7,2018.5,9.9081]
[1743002457310,3.0,2018.7,2018.5,4.95405]
[1743002457874,3.0,2018.7,2018.3,4.95458]
[1743002458101,3.0,2018.7,2018.4,4.95439]
[1743002458307,3.0,2018.7,2018.5,4.95405]
[1743002459302,0.8195,2018.6,2018.3,4.95458]
[1743002459507,0.8195,2018.6,2018.2,20.26104]
[1743002459715,0.8195,2018.6,2018.2,14.5]
[1743002459918,0.8195,2018.6,2018.0,4.95532]
[1743002460715,0.8195,2018.6,2017.9,19.45562]
[1743002460923,0.46640653,2018.5,2017.9,24.41114]
[1743002461244,0.7518,2018.4,2017.9,14.5]
[1743002461441,3.0,2018.2,2017.9,14.5]
[1743002462337,3.0,2018.2,2017.9,19.4556]
[1743002462724,3.36436688,2018.2,2017.9,19.4556]
[1743002462913,3.36436688,2018.2,2017.9,21.896732]
[1743002463314,3.36436688,2018.2,2017.9,16.941132]
[1743002463523,3.36436688,2018.2,2017.9,14.5]
[1743002463726,0.8117,2018.1,2017.9,14.5]
[1743002464245,0.8117,2018.1,2017.6,4.95619]
[1743002464619,0.8117,2018.1,2017.7,14.5]
[1743002466131,0.8117,2018.1,2017.6,4.95635]
[1743002466333,0.8117,2018.1,2017.6,1.12392773]
[1743002466531,0.36436688,2018.2,2017.8,4.95579]
[1743002466731,3.0,2018.0,2017.9,5.00501233]
[1743002466932,3.0,2018.0,2017.9,4.95546]
[1743002467539,3.0,2018.0,2017.7,19.45612]
[1743002467741,0.8102,2017.9,2017.6,4.95631]
[1743002467944,0.8102,2017.9,2017.5,4.95662]
[1743002468141,0.8102,2017.9,2017.5,5.531452]
[1743002468343,0.8102,2017.9,2017.5,0.574832]
[1743002468544,0.8102,2017.9,2017.4,4.95675]
[1743002468745,0.8102,2017.9,2017.3,5.74865]
[1743002468944,0.8102,2017.9,2017.4,14.5]
[1743002469759,0.8102,2017.9,2016.7,0.7917]
[1743002469966,3.0,2017.8,2016.7,0.7917]
[1743002470133,0.8102,2017.6,2016.8,14.5]